Cogmind - Beta 14 @@@ ROGUE MODE // 2024.12.26 @ 13:07:15 Player: x1b Result: Destroyed by Y-45 Defender with Beam Rifle Performance ------------- Evolutions (1) 500 Regions Visited (3) 600 Robots Destroyed (13) 65 Value Destroyed (281) 281 Prototype IDs (0) 0 Alien Tech Used (0) 0 Bonus (0) 0 TOTAL SCORE: 1446 Bonus ------- None Cogmind --------- Core Integrity 0/400 Matter 133/300 Energy 99/100 System Corruption 0% Temperature Cool (15) Movement Core (200) Ox3 Location -9/Storage Parts ------- > --- POWER (1) -------- (None) > --- PROPULSION (4) --- (None) > --- UTILITY (2) ------ Medium Storage Unit > --- WEAPON (2) ------- (None) > --- INVENTORY (10) --- Light Ion Engine Light Ion Engine Medium Storage Unit Large Storage Unit Large Storage Unit High-capacity Storage Unit ECM Suite Small Laser Peak State ------------ > --- POWER ------------ Ion Engine > --- PROPULSION ------- Aluminum Leg Aluminum Leg Aluminum Leg Aluminum Leg > --- UTILITY ---------- High-capacity Storage Unit Signal Interpreter > --- WEAPON ----------- Small Laser > --- INVENTORY -------- Light Ion Engine Light Ion Engine Medium Storage Unit Medium Storage Unit Large Storage Unit Large Storage Unit ECM Suite Assault Rifle Light Assault Rifle Light Assault Rifle [Rating: 9] Favorites ----------- Power Ion Engine Engine Ion Engine Propulsion Aluminum Leg Leg Aluminum Leg Utility Signal Interpreter Storage Large Storage Unit Processor Signal Interpreter Weapon Small Laser Energy Gun Small Laser Ballistic Gun Light Assault Rifle Launcher Grenade Launcher Build | -11 -10 -9 -9 ------- Run | Yrd Mat Mat Sto Slots Evolved 2 | . . 2 . Power . | . . . . Propulsion 2 | . . 2 . Utility . | . . . . Weapon . | . . . . Parts Attached 25 | 6 5 12 2 Power 3 | 1 . 2 . Engine 3 | 1 . 2 . Core . | . . . . Reactor . | . . . . Propulsion 7 | 2 1 4 . Treads . | . . . . Leg 7 | 2 1 4 . Wheel . | . . . . Hover . | . . . . Flight . | . . . . Utility 7 | 1 3 2 1 Device . | . . . . Storage 6 | 1 2 2 1 Processor 1 | . 1 . . Hackware . | . . . . Protection . | . . . . Artifact . | . . . . Weapon 8 | 2 1 4 1 Energy Gun 3 | 1 . 1 1 Energy Cannon . | . . . . Ballistic Gun 4 | 1 . 3 . Ballistic Cannon . | . . . . Launcher 1 | . 1 . . Special Weapon . | . . . . Impact Weapon . | . . . . Slashing Weapon . | . . . . Piercing Weapon . | . . . . Special Melee Weapon . | . . . . Unidentified Prototypes . | . . . . Parts Lost 1 | . 1 . . Power . | . . . . Propulsion . | . . . . Utility . | . . . . Weapon 1 | . 1 . . Highest Loss Streak 1 | . 1 . . To Critical Strikes . | . . . . Average Slot Usage (%) 71 | . 88 69 12 Engine 11 | . 14 10 . Leg 21 | . 28 21 . Storage 12 | . 14 11 11 Processor 7 | . 6 11 . Energy Gun 9 | . 14 6 . Ballistic Gun 4 | . 3 8 . Launcher 3 | . 8 . . Peak Build Rating 9 | 6 7 9 3 Average Rating 5 | 4 6 6 1 On Entrance 4 | . 6 7 4 Naked Turns . | . . . . Heaviest Build 28 | 12 26 28 10 Greatest Support 40 | 20 20 40 3 Greatest Overweight (x) 7 | 1 1 7 3 Average Overweight (x) . | . . 1 3 Largest Inventory Capacity 20 | 8 15 20 15 Average Capacity 11 | 6 9 15 10 Most Carried 11 | 2 11 10 8 Average Carried 6 | 1 6 7 7 Final Capacity 15 | 8 15 15 10 Final Carried 11 | 2 11 6 8 Class Distribution -------------------- 100% | Mutant Dominant Class ---------------- Mutant | -10/Materials Mutant | -9/Materials Mutant | -9/Storage Resources | -11 -10 -9 -9 ----------- Run | Yrd Mat Mat Sto Matter Collected 375 | 210 111 54 . Remotely . | . . . . Salvage Created 238 | . 184 54 . Parts 29 | . 26 3 . Haulers Intercepted . | . . . . Recyclers Shooed 1 | . 1 . . Parts Field Recycled . | . . . . Retrieved Matter . | . . . . Parts Self-Destructed . | . . . . Prevented . | . . . . Kills | -11 -10 -9 -9 ------- Run | Yrd Mat Mat Sto Combat Hostiles Destroyed 11 | . 10 1 . Guns 4 | . 3 1 . AOE 7 | . 7 . . Classes Destroyed 5 | . 4 1 . Worker 1 | . 1 . . Watcher 1 | . 1 . . Swarmer 6 | . 6 . . Grunt 4 | . 4 . . Sentry 1 | . . 1 . Best Kill Streak 3 | . 3 1 . Combat Bots Only 3 | . 3 1 . Max Kills in Single Turn 3 | . 3 1 . Gunslinging . | . . . . Exploded 2 | . 2 . . Melee . | . . . . Uniques/NPCs Destroyed . | . . . . Combat | -11 -10 -9 -9 -------- Run | Yrd Mat Mat Sto Hostile Shots Fired 120 | . 35 28 57 Missed 44 | . 16 9 19 Damage Taken 990 | . 288 228 474 Core 481 | . 74 38 369 Absorbed by Shields . | . . . . Core Remaining (%) 85 | 100 70 . . Volleys Fired 25 | . 16 9 . Largest 2 | . 2 2 . Hottest 70 | . 70 40 . Shots Fired 49 | . 31 18 . Gun 42 | . 24 18 . Cannon . | . . . . Launcher 7 | . 7 . . Special . | . . . . Kinetic 26 | . 8 18 . Thermal 16 | . 16 . . Explosive 7 | . 7 . . Electromagnetic . | . . . . Robot Hit Streak 15 | . 5 15 . Robot Miss Streak 2 | . 2 1 . Penetration Max . | . . . . Secondary Targets . | . . . . Shots Hit Robots 32 | . 15 17 . Core Hits 19 | . 16 3 . Critical Kills . | . . . . Critical Parts Destroyed . | . . . . Critical Strikes . | . . . . Melee Attacks . | . . . . Impact . | . . . . Slashing . | . . . . Piercing . | . . . . Sneak Attacks . | . . . . Combat Hostiles . | . . . . Follow-up Attacks . | . . . . Damage Inflicted 683 | 3 514 166 . Guns 267 | . 102 165 . Cannons . | . . . . Explosions 406 | . 406 . . Melee . | . . . . Ramming 10 | 3 6 1 . Kinetic 209 | . 44 165 . Thermal 58 | . 58 . . Explosive 406 | . 406 . . Electromagnetic . | . . . . Impact . | . . . . Slashing . | . . . . Piercing . | . . . . Highest Corruption . | . . . . Average Corruption . | . . . . Corruption Purged . | . . . . Corruption Blocked . | . . . . Overload Shots . | . . . . Overflow Damage . | . . . . Projectiles . | . . . . Explosions . | . . . . Melee . | . . . . Knockbacks . | . . . . Impact . | . . . . Kinetic . | . . . . Secondary . | . . . . Self-Inflicted Damage 52 | . 52 . . Shots 2 | . 2 . . Rammed 1 | . . 1 . Targets Rammed 5 | 1 3 1 . Kicked 4 | 1 3 . . Crushed . | . . . . Highest Temperature 45 | . 45 24 . Average Temperature 14 | . 15 10 . Received Heat Transfer 330 | . 45 81 204 Siege Activations . | . . . . Robots Corrupted . | . . . . Combat Hostiles . | . . . . Parts Fried . | . . . . Impact Corruptions . | . . . . Robots Melted . | . . . . Combat Hostiles . | . . . . Parts Melted . | . . . . Heat Transferred 125 | . 125 . . Parts Sabotaged . | . . . . Parts Stolen . | . . . . Parts Stripped . | . . . . Power Chain Reactions . | . . . . Alert | -11 -10 -9 -9 ------- Run | Yrd Mat Mat Sto Peak Influence 318 | . 318 90 27 Initial 45 | . . 45 12 Average 108 | . 178 74 15 Maximum Alert Level 1 | . 1 . . Low Security (%) 81 | 100 56 100 100 Level 1 18 | . 43 . . Level 2 . | . . . . Level 3 . | . . . . Level 4 . | . . . . Level 5 . | . . . . High Security . | . . . . Max Security . | . . . . Squads Dispatched 2 | . 1 . 1 Investigation . | . . . . Extermination . | . . . . Reinforcement 2 | . 1 . 1 Assault . | . . . . Garrison . | . . . . Intercept . | . . . . Searches Triggered . | . . . . Construction Impeded . | . . . . Haulers Reinforced . | . . . . Active Scanning Responses . | . . . . Cargo Convoy Interrupts . | . . . . Stealth | -11 -10 -9 -9 --------- Run | Yrd Mat Mat Sto Distress Signals 1 | . 1 . . Communications Jammed . | . . . . Distress Signals . | . . . . Times Spotted 20 | . 13 3 4 Peak Tracking Total 4 | . 4 3 3 Tactical Retreats 1 | . . 1 . Traps | -11 -10 -9 -9 ------- Run | Yrd Mat Mat Sto Traps Triggered 7 | . 3 4 . Indirectly . | . . . . Trap Hack Attempts . | . . . . Triggered . | . . . . Disarmed . | . . . . Reprogrammed . | . . . . Reused . | . . . . Traps Extracted . | . . . . Installed . | . . . . Triggered . | . . . . Machines | -11 -10 -9 -9 ---------- Run | Yrd Mat Mat Sto Machines Disabled 2 | . 2 . . Max in Single Turn 1 | . 1 . . Machines Repaired . | . . . . Machines Dismantled . | . . . . Machines Sabotaged . | . . . . Overloaded Fab Kills . | . . . . Hacking | -11 -10 -9 -9 --------- Run | Yrd Mat Mat Sto Machines Accessed 2 | . 2 . . Terminals 2 | . 2 . . Fabricators . | . . . . Repair Stations . | . . . . Recycling Units . | . . . . Scanalyzers . | . . . . Garrison Access . | . . . . Total Hacks 2 | . 2 . . Successful 2 | . 2 . . Failed . | . . . . Catastrophic . | . . . . Database Lockouts . | . . . . Manual . | . . . . Terminals 2 | . 2 . . Fabricators . | . . . . Repair Stations . | . . . . Recycling Units . | . . . . Scanalyzers . | . . . . Garrison Access . | . . . . Terminal Hacks 2 | . 2 . . Record 1 | . 1 . . Alert Level 1 | . 1 . . Fabricator Hacks . | . . . . Repair Station Hacks . | . . . . Recycling Unit Hacks . | . . . . Scanalyzer . | . . . . Garrison Access Hacks . | . . . . Unauthorized Hacks . | . . . . Terminals . | . . . . Fabricators . | . . . . Repair Stations . | . . . . Recycling Units . | . . . . Scanalyzers . | . . . . Garrison Access . | . . . . Data Cores Recovered . | . . . . Used . | . . . . Hacking Detections 1 | . 1 . . Full Trace Events . | . . . . Feedback Events . | . . . . Feedback Blocked . | . . . . Robot Schematics Acquired . | . . . . Robots Built . | . . . . Authchips . | . . . . Time . | . . . . Total Robot Build Rating . | . . . . Part Schematics Acquired . | . . . . Parts Built . | . . . . Authchips . | . . . . Time . | . . . . Total Part Build Rating . | . . . . Parts Repaired . | . . . . Time . | . . . . Parts Recycled . | . . . . Recycled Matter . | . . . . Retrieved Matter . | . . . . Retrieved Components . | . . . . Parts Scanalyzed . | . . . . Part Schematics Acquired . | . . . . Parts Damaged . | . . . . Bothacking | -11 -10 -9 -9 ------------ Run | Yrd Mat Mat Sto Used RIF Installer . | . . . . Robots Hacked . | . . . . Non-combat . | . . . . Combat . | . . . . Robot Hacks Applied . | . . . . Relay Couplers Released . | . . . . Fabnet Peak Effective % . | . . . . Robots Rewired . | . . . . Allies Hacked . | . . . . Hacks Repelled . | . . . . Allies | -11 -10 -9 -9 -------- Run | Yrd Mat Mat Sto Total Allies . | . . . . Largest Group . | . . . . Highest-Rated Group . | . . . . Highest-Rated Ally . | . . . . Total Orders . | . . . . Ally Attacks . | . . . . Total Damage . | . . . . Kills . | . . . . Allies Corrupted . | . . . . Allies Melted . | . . . . Intel | -11 -10 -9 -9 ------- Run | Yrd Mat Mat Sto Robot Analysis Total . | . . . . Derelict Logs Recovered . | . . . . Drone Launches . | . . . . Drone Recoveries . | . . . . Exploration | -11 -10 -9 -9 ------------- Run | Yrd Mat Mat Sto Turns Passed 1116 | 73 490 425 128 Spaces Moved 635 | 55 327 192 61 Core 119 | 10 . 48 61 Treads . | . . . . Legs 516 | 45 327 144 . Wheels . | . . . . Hover . | . . . . Flight . | . . . . Fastest Speed 50 | 50 120 120 200 Average Speed 154 | 112 128 194 200 Slowest Speed 400 | 120 190 400 200 Overloaded Moves . | . . . . Propulsion Burnouts . | . . . . Robots Hopped . | . . . . Cave-ins Triggered . | . . . . Exploration Rate (%) 21 | 4 58 13 11 Regions Visited 3 Branch Regions 1 Pre-discovered Areas . | . . . . Known Exits Taken 2 | . 1 1 . Unknown Exits Taken 1 | 1 . . . Scrap Searched . | . . . . Spaces Dug . | . . . . Terrain Destroyed 34 | . 34 . . Melee . | . . . . Projectile . | . . . . AOE 34 | . 34 . . Terrain Rammed . | . . . . Walls Destroyed . | . . . . Machines Disabled . | . . . . Actions | -11 -10 -9 -9 --------- Run | Yrd Mat Mat Sto Total 722 | 63 365 223 71 Wait 10 | . . 10 . Move 632 | 54 326 191 61 Hop . | . . . . Pick Up 16 | 2 11 . 3 Fast Attach 10 | 6 1 3 . Attach 8 | . . 6 2 Detach 4 | . . . 4 Swap 7 | . 4 3 . Drop 5 | . 4 . 1 Fire 25 | . 16 9 . Melee . | . . . . Ram 1 | . . 1 . Kick 4 | 1 3 . . Crush . | . . . . Escape Stasis . | . . . . Rewire . | . . . . Trap . | . . . . Miscellaneous . | . . . . Route ------- -11/Scrapyard -10/Materials (discovered 2 exits: *Mat / [*Min]) -9/Materials -9/Storage History --------- Turn | Location | Event 7 | -11/Scrapyard | Discovered new exit (range 15) 74 | -11/Scrapyard | Entered Materials 275 | -10/Materials | Discovered new exit (range 15) 318 | -10/Materials | Build established: Mutant 400 | -10/Materials | Discovered new exit (range 10) 562 | -10/Materials | Identified exit to Materials 564 | -10/Materials | Entered another Materials area 564 | -9/Materials | Evolved 2 slots: Propulsion x2 771 | -9/Materials | Discovered new exit (range 13) 985 | -9/Materials | Identified exit to Storage 989 | -9/Materials | Entered Storage 1089 | -9/Storage | Core integrity fell below 50% 1109 | -9/Storage | Core integrity fell below 20% 1117 | -9/Storage | Destroyed by Y-45 Defender with Beam Rifle Last Messages --------------- R-06 Scavenger collects Lgt. Assault Rifle. R-06 Scavenger collects Aluminum Leg. U-05 Engineer lays Concrete. Slammed into U-05 Engineer. K-01 Serf collects debris. EXIT=IDENTIFIED: STORAGE LOCATION=STORAGE GOAL=ESCAPE Dropped Lrg. Storage Unit. Discarded Signal Interpreter. Acquired Med. Storage Unit. Acquired Lrg. Storage Unit. Acquired ECM Suite. O-16 Technician: "IFF HANDSHAKE FAILED. SECURING TERMINAL." O-16 Technician uses terminal to summon reinforcements. ALERT: Hostiles spotted, dispatching reinforcements to Terminal S016. O-16 Technician locks terminal. Map ----- +----------------------------------------------------+ | | | | | | | | | | | | | | | | | | | | | | | | | | | | | | | | | | | | | | | ???????????????????????????????????? | | ???????????????????????????????????? | | ?????????????????????#######???????? | | ###################### #???????? | | #???????? | | g Y #???????? | | g @ +???????? | | ###################### #???????? | | ?????????????????????## ##???????? | | ??????????????????????# #????????? | | ??????????????????????# #????????? | | ??????????????????????# #????????? | | ??????????????????????# #????????? | | ??????????????????????# #????????? | | ??????????????????????# #????????? | | ??????????????????????# #????????? | | ??????????????????????# +????????? | | ?????????????????????? #????????? | | ?????????????????????? #????????? | | ?????????????????????? #????????? | | ?????????????????????? #????????? | | ??????????????????????T" ?????????? | | ???????????????????????????????????? | | ???????????????????????????????????? | | ???????????????????????????????????? | | ???????????????????????????????????? | | ???????????????????????????????????? | | ???????????????????????????????????? | | ???????????????????????????????????? | | ???????????????????????????????????? | | ???????????????????????????????????? | +----------------------------------------------------+ Best States ------------- Heat Dissipation 28 Energy Generation 10 Energy Capacity 250 Matter Stores 300 Matter Capacity 300 Sight Range 16 Terrain Scan Density 10 Evasion (%) 55 Item Schematics ----------------- None Robot Schematics ------------------ None Fabricated ------------ Nothing Alien Tech Used ----------------- None Achievements -------------- None Challenges ------------ None Game ------ Seed ActuatorNetworkCharge Manual? 0 Play Time 00:11:04 Cumulative 2.9 hours Start 2024.12.26 @ 12:54:01 End 2024.12.26 @ 13:07:15 Sessions 1 Manual Loads 0 Difficulty Rogue Special Mode None Game No. 10 Rogue 4 Adventurer 6 Explorer 0 Win Type - Total 0 Types 0/0/0/0/0/0/0/0/0 Lore% 1 Gallery% 8 Achievement% 8 Wizard Run 0 Options --------- Layout 1 ASCII 0 Keyboard 0 Movement Arrows Keybinds 0 Fullscreen 1 Font 24/Smallcaps Map View 50x35 Zoom Use 0% Tactical HUD 0 Map Filters NONE Filters NONE Steam 1 RUN: 182087d9-9138-414a-a6b8-de4148f16340